bitfinex-derivatives/quotes_SOLF0:USTF0_20241203
["timestamp","ask_amount","ask_price","bid_price","bid_amount"]
[1733184475854,16.59600424,225.63,225.55,28.61996174]
[1733184476063,2.08,225.62,225.56,21.08839286]
[1733184476254,2.08,225.61,225.57,9.79103954]
[1733184476453,2.08,225.61,225.58,9.79103954]
[1733184476654,2.08,225.61,225.46,16.59600424]
[1733184476860,2.08,225.61,225.47,20.57895858]
[1733184477059,2.08,225.61,225.48,22.65895858]
[1733184477259,2.08,225.61,225.51,4.1705]
[1733184477460,2.08,225.61,225.52,9.55451648]
[1733184477655,2.08,225.61,225.51,4.1705]
[1733184477656,2.08,225.61,225.53,9.55451648]
[1733184477860,2.08,225.61,225.54,9.55451648]
[1733184478158,2.08,225.61,225.55,9.55451648]
[1733184478360,2.08,225.61,225.56,9.55451648]
[1733184478659,2.08,225.61,225.57,9.55451648]
[1733184478863,2.08,225.61,225.58,9.55451648]
[1733184479164,2.08,225.61,225.59,9.46792852]
[1733184479362,2.08,225.61,225.6,9.46792852]
[1733184481159,58.71993794,225.72,225.6,9.00142571]
[1733184481160,2.08,225.64,225.6,9.00142571]
[1733184481365,2.08,225.65,225.61,9.00142571]
[1733184481567,2.08,225.65,225.62,9.00142571]
[1733184481756,2.08,225.65,225.63,3.46208681]
[1733184481961,2.08,225.65,225.61,2.2153]
[1733184482162,2.08,225.65,225.62,9.00024167]
[1733184482464,2.08,225.65,225.63,3.46163141]
[1733184482656,2.08,225.65,225.62,2.2153]
[1733184482657,2.08,225.65,225.64,3.46163141]
[1733184483063,2.08,225.65,225.64,5.67673141]
[1733184483267,2.08,225.69,225.64,9.00388762]
[1733184483564,2.08,225.69,225.65,9.00388762]
[1733184483863,2.08,225.69,225.66,15.92780508]
[1733184484068,2.08,225.69,225.67,15.92780508]
[1733184484268,2.08,225.69,225.68,18.14664255]
[1733184484462,10.38312472,225.78,225.68,15.93194255]
[1733184484665,4.2938,225.77,225.69,11.21838762]
[1733184484860,4.2938,225.77,225.7,9.00388762]
[1733184485069,2.08,225.77,225.71,3.46163141]
[1733184485271,2.08,225.77,225.65,10.38312472]
[1733184485466,2.08,225.77,225.66,15.94197497]
[1733184485667,2.08,225.77,225.68,10.38312472]
[1733184485967,2.08,225.77,225.73,2.2141]
[1733184486166,2.08,225.77,225.68,10.38312472]
[1733184486367,2.08,225.77,225.69,15.94901006]
[1733184486571,1.2761,225.83,225.7,15.94901006]
[1733184486761,2.08,225.82,225.71,15.94901006]
[1733184486962,10.38312472,225.81,225.72,9.01465786]
[1733184487160,10.38312472,225.78,225.73,9.01465786]
[1733184487372,10.38312472,225.75,225.65,4.28680369]
[1733184487567,2.2145,225.7,225.64,2.215]
[1733184487772,2.08,225.69,225.65,15.96543567]
[1733184488063,12.46312472,225.69,225.66,12.49468879]
[1733184488268,12.46312472,225.69,225.56,10.38312472]
[1733184488269,2.2148,225.67,225.61,4.29726754]
[1733184488464,2.08,225.69,225.62,16.80171645]
[1733184488668,2.2148,225.67,225.63,12.50444891]
[1733184488871,12.46312472,225.69,225.64,15.97790694]
[1733184489171,2.2147,225.68,225.65,9.03099088]
[1733184489369,12.46312472,225.69,225.66,9.03527203]
[1733184489672,12.46312472,225.69,225.59,4.29726754]
[1733184489875,12.46312472,225.69,225.6,15.99493379]
[1733184490073,12.46312472,225.69,225.61,15.99493379]
[1733184490274,12.46312472,225.69,225.62,9.04061475]
[1733184490470,2.08,225.69,225.63,9.04061475]
[1733184490669,2.08,225.69,225.64,9.04061475]
[1733184490871,2.08,225.69,225.65,3.47715952]
[1733184491072,2.08,225.69,225.59,4.29726754]
[1733184491271,10.38312472,225.72,225.62,2.2152]
[1733184491471,2.1,225.71,225.63,9.04332627]
[1733184491776,2.1,225.71,225.64,3.47820241]
[1733184491976,2.1,225.71,225.59,10.38312472]
[1733184492170,2.1,225.71,225.6,16.01059129]
[1733184492477,2.2146,225.69,225.64,2.215]
[1733184492674,2.1,225.71,225.65,3.48058917]
[1733184492872,2.1,225.71,225.66,3.48333766]
[1733184493075,2.2148,225.67,225.62,2.2153]
[1733184493273,2.1,225.66,225.63,9.06570956]
[1733184493475,2.1,225.66,225.64,3.48681137]
[1733184493675,2.1,225.66,225.62,2.2153]
[1733184493975,2.1,225.66,225.63,9.06708539]
[1733184494173,2.1,225.66,225.64,3.48734053]
[1733184494374,2.1,225.66,225.56,10.38312472]
[1733184494375,2.1,225.66,225.65,3.48734053]
[1733184495675,2.1,225.66,225.65,3.49426875]
[1733184497079,2.1,225.66,225.65,2.215]
[1733184497275,2.1,225.66,225.65,11.30861134]
[1733184497872,2.1,225.66,225.65,9.09361134]
[1733184498077,2.1,225.66,225.65,3.49754282]
[1733184498278,2.1,225.66,225.65,9.11068064]
[1733184498776,2.1,225.66,225.65,18.34141037]
[1733184499168,2.1,225.66,225.65,11.32568064]
[1733184499371,2.1,225.66,225.65,16.13888868]
[1733184500169,2.1,225.66,225.65,18.35388868]
[1733184500679,2.1,225.7,225.65,16.13888868]
[1733184500878,2.1,225.7,225.66,20.49839336]
[1733184501095,2.1,225.7,225.68,2.2146]
[1733184501283,2.1,225.7,225.69,16.13888868]
[1733184501675,1.2853,225.76,225.69,16.13888868]
[1733184501878,2.1,225.75,225.67,4.35950468]
[1733184502079,2.1,225.75,225.68,16.21422805]
[1733184502278,2.1,225.75,225.69,16.21422805]
[1733184502477,2.1,225.75,225.66,4.35950468]
[1733184502673,2.1,225.75,225.67,20.57837233]
[1733184502976,2.2141,225.74,225.69,2.2145]
[1733184503176,2.2141,225.74,225.7,16.21886765]
[1733184503380,2.2141,225.74,225.71,9.16718606]
[1733184503584,2.2141,225.74,225.7,2.2145]
[1733184504583,10.38312472,225.81,225.71,9.16604923]
[1733184504788,2.1,225.8,225.72,9.16461567]
[1733184505083,2.2138,225.77,225.73,5.63921007]
[1733184505289,2.1,225.76,225.74,3.52450629]
[1733184505476,2.1,225.75,225.68,16.0693294]
[1733184505677,2.1,225.75,225.69,16.20635358]
[1733184505877,2.1,225.75,225.7,16.20635358]
[1733184506184,2.1,225.75,225.71,9.16011289]
[1733184506387,2.1,225.75,225.72,3.52312034]
[1733184506684,2.1,225.75,225.65,14.7426294]
[1733184506882,2.1,225.75,225.66,16.20858999]
[1733184507082,2.1,225.75,225.72,2.2142]
[1733184508192,2.1,225.75,225.73,2.2142]
[1733184508683,2.1,225.75,225.68,10.38312472]
[1733184508898,2.1,225.77,225.69,9.1614001]
[1733184509186,10.38312472,225.83,225.65,2.1]
[1733184509187,2.1,225.78,225.71,10.38312472]
[1733184509382,2.1,225.79,225.71,10.38312472]
[1733184509586,2.1,225.79,225.74,10.38312472]
[1733184510288,59.4311156,225.85,225.74,10.38312472]
[1733184510590,2.1,225.82,225.74,10.38312472]
[1733184511884,2.1,225.82,225.76,2.2138]
[1733184512083,2.2135,225.8,225.73,2.605]
[1733184512287,2.2135,225.8,225.74,2.2141]
[1733184512487,2.1,225.82,225.73,2.605]
[1733184512890,2.1,225.82,225.75,2.214]
[1733184513492,2.1,225.82,225.73,2.605]
[1733184513687,2.1,225.82,225.76,2.2138]
[1733184515990,2.1,225.82,225.77,2.2138]
[1733184516398,2.1,225.82,225.74,10.38312472]
[1733184516587,2.1,225.82,225.78,2.2136]
[1733184517091,2.1,225.82,225.74,10.38312472]
[1733184517292,2.1,225.82,225.77,2.2138]
[1733184517691,2.1,225.82,225.73,2.605]
[1733184517892,4.3133,225.82,225.76,2.2139]
[1733184518295,2.1,225.82,225.77,2.2138]
[1733184520098,2.1,225.82,225.78,2.2136]
[1733184520401,2.1,225.81,225.77,10.38312472]
[1733184520594,2.1,225.84,225.83,2.2132]
[1733184520794,2.1,225.85,225.77,10.38312472]
[1733184520995,2.1,225.86,225.8,10.38312472]
[1733184521296,11.79562472,225.95,225.83,10.38312472]
[1733184521494,2.1,225.92,225.83,10.38312472]
[1733184521693,2.1,225.92,225.88,2.2126]
[1733184522396,12.61438418,225.98,225.88,2.2126]
[1733184522397,2.1,225.91,225.88,2.2126]
[1733184522893,2.1,225.91,225.86,2.2128]
[1733184523198,2.1,225.91,225.83,10.38312472]
[1733184523495,2.2125,225.9,225.8,10.38312472]
[1733184523993,2.1,225.91,225.81,2.2133]
[1733184524396,2.1,225.91,225.77,10.38312472]
[1733184524595,2.213,225.85,225.79,2.2135]
[1733184524897,2.1,225.84,225.74,10.38312472]
[1733184525089,2.1,225.84,225.8,2.2135]
[1733184525295,2.1,225.84,225.74,10.38312472]
[1733184525995,2.2132,225.83,225.74,10.38312472]
[1733184526699,4.3131,225.84,225.74,10.38312472]
[1733184526899,2.1,225.84,225.74,10.38312472]
[1733184527603,2.1,225.84,225.77,2.2138]
[1733184527900,2.1,225.84,225.74,10.38312472]
[1733184528301,4.3131,225.84,225.78,2.2137]
[1733184528491,2.1,225.84,225.78,2.2137]
[1733184529703,4.3131,225.84,225.78,2.2137]
[1733184530197,4.3131,225.84,225.74,10.38312472]
[1733184532897,4.3131,225.84,225.77,2.2138]
[1733184533201,4.3131,225.84,225.74,10.38312472]
[1733184533799,4.3131,225.84,225.78,2.2136]
[1733184534299,2.2132,225.83,225.77,2.2138]
[1733184534804,2.1,225.84,225.74,10.38312472]
[1733184535003,4.3131,225.84,225.77,2.2138]
[1733184535605,4.3131,225.84,225.74,10.38312472]
[1733184536097,2.1,225.84,225.77,10.38312472]
[1733184536699,1.348,225.89,225.8,10.38312472]
[1733184536897,2.1,225.88,225.8,10.38312472]
[1733184537298,2.1,225.88,225.82,2.2132]
[1733184537503,2.1,225.88,225.77,10.38312472]
[1733184537907,1.348,225.95,225.77,10.38312472]
[1733184537908,1.348,225.95,225.83,10.38312472]
[1733184538104,2.1,225.94,225.83,10.38312472]
[1733184538510,2.2122,225.93,225.83,10.38312472]
[1733184538702,2.1,225.94,225.83,10.38312472]
[1733184539218,2.2123,225.93,225.87,2.2127]
[1733184539406,2.2123,225.93,225.83,10.38312472]
[1733184539715,2.2123,225.93,225.86,2.2129]
[1733184539911,2.2123,225.93,225.83,10.38312472]
[1733184540316,2.2123,225.93,225.88,2.2127]
[1733184540510,2.2125,225.9,225.8,10.38312472]
[1733184540715,12.48312472,225.94,225.8,10.38312472]
[1733184540716,2.1,225.89,225.8,10.38312472]
[1733184540916,2.1,225.89,225.73,2.605]
[1733184540917,2.1,225.88,225.83,2.2131]
[1733184541110,2.1,225.87,225.83,2.2131]
[1733184541515,2.1,225.87,225.77,10.38312472]
[1733184542016,2.1,225.87,225.82,2.2133]
[1733184542209,2.1,225.87,225.77,10.38312472]
[1733184542807,2.1,225.87,225.82,2.2132]
[1733184544015,2.1,225.87,225.83,2.2132]
[1733184544818,2.1,225.87,225.77,10.38312472]
[1733184545019,2.1,225.87,225.83,10.38312472]
[1733184545919,2.1,225.87,225.86,2.2129]
[1733184547021,2.1,225.87,225.84,2.213]
[1733184547520,2.1,225.87,225.8,10.38312472]
[1733184547918,2.1,225.87,225.77,10.38312472]
[1733184548220,2.1,225.87,225.8,10.38312472]
[1733184548919,2.1,225.87,225.85,2.2129]
[1733184549717,2.1,225.87,225.86,2.2129]
[1733184550717,2.1,225.87,225.83,10.38312472]
[1733184550718,1.3114,225.96,225.9,2.2124]
[1733184550926,2.1,225.95,225.9,2.2124]
[1733184551122,1.3114,225.96,225.9,2.2124]
[1733184551425,1.3114,225.96,225.84,2.6555]
[1733184551426,2.1,225.95,225.91,2.2123]
[1733184553422,2.1,225.95,225.92,2.2123]
[1733184554423,2.1,225.95,225.93,2.2122]
[1733184556125,2.1,225.95,225.84,2.6555]
[1733184556721,2.2123,225.93,225.89,2.2125]
[1733184557119,2.2123,225.93,225.9,2.2125]
[1733184559729,2.2121,225.94,225.9,2.2125]
[1733184560730,2.2121,225.94,225.91,2.2124]
[1733184563633,2.1,225.95,225.93,2.2122]
[1733184563634,8.72699926,225.95,225.93,2.2122]
[1733184563832,2.1,225.95,225.92,6.62699926]
[1733184564934,2.1,225.95,225.94,2.2121]
[1733184565431,2.2123,225.93,225.9,2.2125]
[1733184565632,6.62699926,225.93,225.9,2.2125]
[1733184566033,2.1,225.95,225.9,2.2125]
[1733184566234,6.62699926,225.94,225.9,2.2125]
[1733184566633,2.1,225.95,225.88,6.62699926]
[1733184566833,8.72699926,225.95,225.88,6.62699926]
[1733184567034,2.1,225.95,225.9,6.62699926]
[1733184568037,2.1,225.95,225.92,2.2122]
[1733184568242,2.1,225.95,225.9,6.62699926]
[1733184568440,2.1,225.95,225.92,2.2122]
[1733184568637,2.1,225.95,225.92,6.62699926]
[1733184568841,2.1,225.97,225.94,6.62699926]
[1733184569044,2.1,225.97,225.96,2.2119]
[1733184570340,2.1,225.97,225.96,8.83889926]
[1733184570542,2.1,225.97,225.96,2.2119]
[1733184571042,2.1,225.97,225.86,2.1]
[1733184571043,2.1,225.98,225.86,2.1]
[1733184571233,2.1,225.98,225.93,6.62699926]
[1733184571540,2.1,225.98,225.94,2.2121]
[1733184571743,2.1,225.98,225.86,2.1]
[1733184571943,2.1,225.98,225.91,6.62699926]
[1733184572133,6.62699926,225.96,225.91,6.62699926]
[1733184572943,8.83899926,225.96,225.91,2.2123]
[1733184573239,2.1,225.98,225.84,2.6555]
[1733184573240,6.62699926,225.94,225.84,2.6555]
[1733184573437,6.62699926,225.92,225.86,6.62699926]
[1733184573634,2.1,225.91,225.86,6.62699926]
[1733184573836,2.1,225.91,225.87,2.2127]
[1733184574042,2.1,225.91,225.88,6.62699926]
[1733184574241,2.1,225.91,225.88,8.83969926]
[1733184574438,2.24959083,226.03,225.87,6.62699926]
[1733184574639,2.1,226.01,225.87,6.62699926]
[1733184574944,2.2122,225.93,225.88,2.2127]
[1733184575146,2.2122,225.93,225.87,6.62699926]
[1733184575147,2.1,225.92,225.87,6.62699926]
[1733184576241,2.1,225.92,225.88,2.2126]
[1733184576842,10.93929926,225.92,225.86,2.2128]
[1733184577145,8.72699926,225.92,225.86,2.2128]
[1733184577335,10.93929926,225.92,225.85,6.62699926]
[1733184577535,2.1,225.92,225.87,2.2128]
[1733184577742,2.1,225.92,225.86,6.62699926]
[1733184577942,4.3123,225.92,225.86,8.83989926]
[1733184578146,2.1,225.92,225.9,6.62699926]
[1733184578446,2.1,225.92,225.9,8.83949926]
[1733184579242,2.1,225.92,225.9,6.62699926]
[1733184580246,2.1,225.94,225.9,2.2125]
[1733184580447,2.1,225.94,225.92,6.62699926]
[1733184580643,1.325,226.04,225.92,6.62699926]
[1733184580840,2.1,226.01,225.97,6.62699926]
[1733184581242,1.325,226.04,225.99,6.62699926]
[1733184581449,2.1,226.03,226.01,6.62699926]
[1733184581648,2.1,226.02,226.01,6.62699926]
[1733184581952,2.1,226.04,226.03,2.2112]
[1733184582248,308.412776,226.09,226.03,6.62699926]
[1733184582453,2.1,226.07,226.06,6.62699926]
[1733184582840,2.1,226.08,226.06,6.62699926]
[1733184583650,2.1,226.08,226.03,10.3389961]
[1733184584350,2.1,226.08,226.04,2.2112]
[1733184585242,2.1,226.08,226.03,12.5502961]
[1733184587456,2.1,226.08,226.03,10.3389961]
[1733184588355,2.1,226.08,226.03,12.5501961]
[1733184590347,47.4249,226.14,226.03,12.5501961]
[1733184590547,2.662,226.17,226.06,10.3389961]
[1733184590747,2.662,226.17,226.09,10.3389961]
[1733184590748,2.1,226.16,226.09,10.3389961]
[1733184591552,2.1,226.18,226.15,2.21]
[1733184591860,2.1,226.18,226.12,10.3389961]
[1733184592049,2.1,226.18,226.15,10.3389961]
[1733184592252,2.1,226.18,226.15,12.5489961]
[1733184593649,2.1,226.18,226.12,12.5493961]
[1733184594453,2.1,226.18,226.13,2.2103]
[1733184594756,2.1,226.18,226.1,2.6015]
[1733184594957,2.1,226.18,226.06,10.3389961]
[1733184595753,10.3389961,226.17,226.06,10.3389961]
[1733184596057,10.3389961,226.14,226.03,2.6117]
[1733184596259,2.1,226.13,226.03,2.6117]
[1733184596455,2.1,226.13,226.03,2.2112]
[1733184596655,2.1,226.13,226.0,10.3389961]
[1733184597050,2.2109,226.08,226.02,2.2113]
[1733184597252,2.1,226.07,226.0,10.3389961]
[1733184597452,4.311,226.06,226.0,12.5504961]
[1733184597756,2.1,226.05,226.0,10.3389961]
[1733184598453,2.1,226.05,226.0,12.5505961]
[1733184598651,2.1,226.05,225.97,10.3389961]
[1733184598955,2.1,226.05,225.98,2.2117]
[1733184598956,4.3111,226.05,225.98,2.2117]
[1733184599150,4.3111,226.05,225.97,10.3389961]
[1733184599548,2.1,226.05,225.97,12.5507961]
[1733184600159,2.1,226.05,225.97,10.3389961]
[1733184600356,2.1,226.05,225.95,2.212]
[1733184600561,2.1,226.05,225.83,14.66096427]
[1733184600562,12.4389961,226.05,225.91,10.3389961]
[1733184600764,10.3389961,226.02,225.89,2.2126]
[1733184601059,2.1,226.05,225.85,10.3389961]
[1733184601060,10.3389961,225.99,225.85,10.3389961]
[1733184601268,2.1,225.98,225.85,10.3389961]
[1733184601562,2.1,225.98,225.88,10.3389961]
[1733184601964,4.3118,225.98,225.88,10.3389961]
[1733184602561,2.2119,225.97,225.91,2.2124]
[1733184602960,2.1,225.98,225.88,10.3389961]
[1733184603658,4.3118,225.98,225.91,2.2123]
[1733184604565,2.1,225.98,225.88,10.3389961]
[1733184604863,10.3389961,225.96,225.82,10.3389961]
[1733184605061,10.3389961,225.93,225.8,1.3958]
[1733184605261,2.1,225.92,225.79,10.3389961]
[1733184605662,2.2127,225.89,225.82,2.2132]
[1733184605961,2.2127,225.89,225.79,10.3389961]
[1733184606164,2.2126,225.89,225.79,10.3389961]
[1733184606460,2.1,225.92,225.79,10.3389961]
[1733184606667,2.2127,225.89,225.8,2.2135]
[1733184606866,2.1,225.92,225.79,10.3389961]
[1733184607267,10.3389961,225.9,225.76,10.3389961]
[1733184607970,2.2131,225.85,225.78,2.2136]
[1733184608266,6.1922,225.92,225.79,10.3389961]
[1733184608267,2.1,225.84,225.79,10.3389961]
[1733184608468,2.1,225.83,225.79,10.3389961]
[1733184608670,2.1,225.84,225.79,10.3389961]
[1733184609165,4.0922,225.92,225.79,10.3389961]
[1733184609363,4.0922,225.92,225.85,10.3389961]
[1733184609564,2.1,225.92,225.85,10.3389961]
[1733184610462,2.1,225.92,225.88,2.2126]
[1733184610664,2.1,225.92,225.88,10.3389961]
[1733184611068,2.1,225.92,225.9,2.2125]
[1733184612163,2.1,225.92,225.91,2.2124]
[1733184612363,2.1,225.96,225.91,10.3389961]
[1733184612563,2.1,225.98,225.91,10.3389961]
[1733184612767,2.1,226.0,225.95,2.2119]
[1733184612960,2.1,226.0,225.94,10.3389961]
[1733184614368,2.1,226.0,225.94,2.2121]
[1733184614670,10.3389961,225.99,225.76,4.32314832]
[1733184614869,10.3389961,225.96,225.82,10.3389961]
[1733184615173,2.1,225.95,225.82,10.3389961]
[1733184615360,2.1,225.95,225.78,45.02822949]
[1733184615361,2.1,225.95,225.85,10.3389961]
[1733184615770,2.1,225.95,225.82,10.3389961]
[1733184616065,2.2123,225.93,225.86,2.2129]
[1733184616272,2.1,225.95,225.86,2.2129]
[1733184616466,2.1,225.95,225.82,10.3389961]
[1733184616467,2.2125,225.91,225.82,10.3389961]
[1733184616767,2.1,225.9,225.82,10.3389961]
[1733184617069,2.1,225.89,225.84,2.2131]
[1733184617471,2.1,225.89,225.81,1.406]
[1733184617662,2.1,225.89,225.82,10.3389961]
[1733184617865,2.1,225.93,225.85,10.3389961]
[1733184618271,2.1,225.93,225.89,2.2126]
[1733184618570,2.1,225.93,225.88,10.3389961]
[1733184618871,2.1,225.97,225.88,10.3389961]
[1733184619064,2.1,225.98,225.88,10.3389961]
[1733184619264,2.2115,226.01,225.94,2.2121]
[1733184619567,2.1,226.0,225.94,10.3389961]
[1733184619871,2.1,226.02,225.94,10.3389961]
[1733184620074,2.1,226.02,225.98,2.2117]
[1733184620273,2.1,226.02,225.94,10.3389961]
[1733184620576,2.1,226.05,226.0,2.2115]
[1733184621471,2.1,226.05,225.97,2.2118]
[1733184621673,2.1,226.05,225.94,10.3389961]
[1733184621976,2.1,226.05,225.97,2.2118]
[1733184622178,2.1,226.05,225.94,10.3389961]
[1733184622377,2.1,226.05,225.97,10.3389961]
[1733184622578,2.1,226.05,226.0,10.3389961]
[1733184623175,2.1,226.05,226.04,2.2112]
[1733184623375,10.3389961,226.13,226.04,2.2112]
[1733184623573,3.9571,226.15,226.0,10.3389961]
[1733184623880,3.9571,226.15,226.03,10.3389961]
[1733184623881,2.1,226.14,226.03,10.3389961]
[1733184625075,4.3102,226.14,226.07,2.2109]
[1733184625275,2.1,226.14,226.07,2.2109]
[1733184626075,4.3102,226.14,226.07,2.2109]
[1733184626578,4.3102,226.14,226.08,2.2108]
[1733184626779,2.1,226.13,226.06,10.3389961]
[1733184626977,2.1,226.13,226.12,2.2104]
[1733184627180,2.1,226.17,226.12,2.2104]
[1733184627876,4.3099,226.17,226.12,2.2104]
[1733184628273,46.06,226.22,226.09,10.3389961]
[1733184628481,2.1,226.2,226.09,10.3389961]
[1733184628876,2.1,226.2,226.15,2.21]
[1733184630879,2.1,226.2,226.16,2.21]
[1733184631279,10.3389961,226.23,226.09,12.4389961]
[1733184631579,2.1,226.22,226.12,10.3389961]
[1733184631775,1.3153,226.26,226.15,10.3389961]
[1733184631981,2.1,226.25,226.18,10.3389961]
[1733184632378,2.1,226.25,226.14,2.1]
[1733184632379,2.1,226.25,226.15,10.3389961]
[1733184632686,2.1,226.25,226.13,1.3033]
[1733184633882,2.2095,226.22,226.15,2.21]
[1733184634981,2.1,226.25,226.13,1.3033]
[1733184635984,2.2093,226.23,226.13,1.3033]
[1733184636687,2.2093,226.23,226.16,2.21]
[1733184636878,2.1,226.25,226.15,10.3389961]
[1733184637081,2.1,226.25,226.18,10.3389961]
[1733184637281,2.1,226.25,226.2,2.2096]
[1733184637480,2.1,226.25,226.15,10.3389961]
[1733184637686,2.1,226.25,226.14,1.3007]
[1733184637983,2.2099,226.18,226.1,10.3389961]
[1733184638185,2.1,226.2,226.13,10.3389961]
[1733184638588,2.1,226.2,226.15,2.2101]
[1733184638894,2.1,226.2,226.13,10.3389961]
[1733184639189,2.1,226.2,226.15,2.2101]
[1733184639784,2.1,226.2,226.13,10.3389961]
[1733184639986,2.1,226.2,226.16,2.21]
[1733184640291,2.1,226.2,226.16,10.3389961]
[1733184642503,2.1,226.2,226.17,2.2099]
[1733184643295,2.1,226.2,226.18,2.2098]
[1733184643898,2.1,226.2,226.16,10.3389961]
[1733184644101,2.1,226.2,226.17,2.2099]
[1733184645503,2.1,226.2,226.18,2.2098]
[1733184646197,2.1,226.25,226.16,10.3389961]
[1733184648206,2.1,226.25,226.13,10.3389961]
[1733184648396,2.2094,226.22,226.15,2.21]
[1733184648599,2.2094,226.22,226.13,10.3389961]
[1733184648902,2.2094,226.22,226.17,2.2099]
[1733184649094,2.1,226.25,226.17,2.2099]
[1733184649299,2.2093,226.23,226.13,10.3389961]
[1733184649998,2.1,226.25,226.16,10.3389961]
[1733184651702,2.1,226.25,226.21,2.2094]
[1733184652495,2.1,226.25,226.22,2.2093]
[1733184652901,2.1,226.25,226.16,10.3389961]
[1733184653200,2.1,226.25,226.23,2.2093]
[1733184653705,2.1,226.25,226.24,2.2092]
[1733184655405,2.1,226.25,226.16,10.3389961]
[1733184655699,2.1,226.25,226.17,3.64605504]
[1733184655902,2.1,226.25,226.18,3.64605504]
[1733184656099,2.1,226.25,226.18,2.2097]
[1733184656300,2.1,226.25,226.16,10.3389961]
[1733184656498,2.1,226.25,226.17,3.64773127]
[1733184656800,2.1,226.25,226.18,3.64773127]
[1733184657107,2.1,226.25,226.19,3.64967314]
[1733184657297,2.1,226.25,226.18,2.2097]
[1733184657500,2.1,226.25,226.19,3.64976667]
[1733184657701,2.1,226.25,226.16,10.3389961]
[1733184657901,2.1,226.25,226.2,2.2095]
[1733184658100,4.3091,226.25,226.2,2.2095]
[1733184658505,2.1,226.25,226.16,10.3389961]
[1733184658799,2.2092,226.24,226.19,2.2097]
[1733184659207,2.2095,226.22,226.2,3.65216816]
[1733184659408,2.2095,226.22,226.17,2.2099]
[1733184659709,2.2095,226.22,226.18,3.65340997]
[1733184659912,12.4389961,226.25,226.19,3.65340997]
[1733184660106,2.1,226.25,226.2,3.65555666]
[1733184660409,2.1,226.25,226.21,2.2095]
[1733184661403,4.3092,226.25,226.21,2.2095]
[1733184661808,2.1,226.25,226.16,10.3389961]
[1733184662007,2.1,226.25,226.17,16.83293645]
[1733184662215,2.1,226.25,226.19,10.3389961]
[1733184662509,2.1,226.27,226.2,9.51426843]
[1733184662702,2.1,226.27,226.21,9.51426843]
[1733184662907,2.1,226.27,226.19,10.3389961]
[1733184663207,2.88809,226.32,226.2,16.85132207]
[1733184663408,2.1,226.31,226.21,16.85132207]
[1733184663612,2.1,226.31,226.22,16.85132207]
[1733184663912,4.3085,226.31,226.26,2.2089]
[1733184664112,2.1,226.31,226.21,4.30760774]
[1733184664311,2.1,226.31,226.22,16.87158916]
[1733184664607,2.1,226.31,226.23,16.87158916]
[1733184664816,2.2086,226.3,226.25,2.2091]
[1733184665507,12.4389961,226.31,226.21,4.30760774]
[1733184665709,12.4389961,226.31,226.22,16.8861038]
[1733184665906,12.4389961,226.31,226.23,16.8861038]
[1733184666109,12.4389961,226.31,226.21,4.30760774]
[1733184666110,12.4389961,226.31,226.24,16.8861038]
[1733184666305,12.4389961,226.31,226.21,4.30760774]
[1733184666507,2.2087,226.29,226.25,2.209]
[1733184667111,2.2089,226.27,226.23,2.2092]
[1733184667416,2.1,226.26,226.2,4.30760774]
[1733184667609,2.1,226.26,226.21,16.92113914]
[1733184667916,2.1,226.26,226.22,16.92113914]
[1733184668113,2.1,226.26,226.23,16.92064745]
[1733184668415,2.1,226.26,226.24,2.2091]
[1733184668614,2.1,226.26,226.2,4.30760774]
[1733184668807,2.1,226.26,226.21,16.94190586]